bitfinex-derivatives/quotes_SOLF0:USTF0_20250501
["timestamp","ask_amount","ask_price","bid_price","bid_amount"]
[1746106060607,25.16212263,152.32,152.22,23.7]
[1746106060806,1.20662243,152.31,152.22,23.7]
[1746106061004,6.5661,152.28,152.22,23.7]
[1746106061304,6.1329,152.33,152.22,23.7]
[1746106061508,6.5656,152.29,152.26,6.5664]
[1746106061705,6.5656,152.29,152.26,30.2664]
[1746106062895,6.5658,152.28,152.26,30.2664]
[1746106063100,6.5658,152.28,152.26,23.7]
[1746106064608,6.5662,152.27,152.26,23.7]
[1746106067010,6.5679,152.24,152.23,23.7]
[1746106067311,12.03362263,152.29,152.23,23.7]
[1746106067608,23.7,152.3,152.24,6.5675]
[1746106067815,6.5665,152.27,152.24,6.5675]
[1746106068910,6.5665,152.27,152.25,6.5671]
[1746106069616,6.5665,152.27,152.24,6.5674]
[1746106072715,6.5657,152.29,152.23,23.7]
[1746106073116,6.5657,152.29,152.24,1.9331]
[1746106073315,6.5657,152.29,152.26,6.5663]
[1746106075417,29.8329,152.33,152.24,1.9331]
[1746106075418,12.03362263,152.35,152.27,23.7]
[1746106075620,1.20639131,152.34,152.27,23.7]
[1746106075812,12.03362263,152.35,152.27,23.7]
[1746106076010,6.5644,152.32,152.29,6.5653]
[1746106076205,6.5644,152.32,152.27,23.7]
[1746106076206,12.03362263,152.35,152.27,23.7]
[1746106076614,12.03362263,152.35,152.29,6.5652]
[1746106077417,6.5646,152.31,152.28,6.5657]
[1746106077613,23.7,152.36,152.27,23.7]
[1746106077817,7.75678762,152.37,152.27,23.7]
[1746106078117,6.5639,152.33,152.3,6.5647]
[1746106078319,6.5639,152.33,152.3,30.2647]
[1746106079718,6.5642,152.32,152.3,23.7]
[1746106079916,7.75678762,152.37,152.3,23.7]
[1746106080117,16.03312263,152.38,152.3,23.7]
[1746106080317,1.20614717,152.37,152.3,23.7]
[1746106080825,6.5643,152.32,152.3,23.7]
[1746106082219,6.5645,152.31,152.3,23.7]
[1746106082813,6.5643,152.32,152.3,23.7]
[1746106083420,6.5645,152.31,152.3,23.7]
[1746106086515,6.5645,152.31,152.28,6.5658]
[1746106088321,12.03362263,152.35,152.27,23.68]
[1746106088618,1.20629401,152.34,152.27,23.68]
[1746106089921,6.5661,152.28,152.25,10.5496]
[1746106090117,6.5661,152.28,152.26,23.68]
[1746106090324,6.5661,152.28,152.25,34.2296]
[1746106090921,6.5667,152.26,152.25,23.68]
[1746106091716,23.68,152.31,152.2,6.1221]
[1746106091921,12.03362263,152.29,152.21,23.68]
[1746106092520,12.03362263,152.26,152.21,23.68]
[1746106093021,12.03362263,152.26,152.18,23.68]
[1746106093417,6.5691,152.21,152.18,23.68]
[1746106094021,14.04322263,152.26,152.18,23.68]
[1746106094528,6.5682,152.23,152.19,6.5696]
[1746106094719,14.04322263,152.26,152.18,23.68]
[1746106096131,6.5687,152.22,152.19,6.5697]
[1746106096528,6.5687,152.22,152.18,23.68]
[1746106096732,6.5687,152.22,152.18,30.2499]
[1746106097327,6.5687,152.22,152.19,6.5696]
[1746106098934,6.5688,152.21,152.18,30.2499]
[1746106100131,6.5688,152.21,152.19,6.5697]
[1746106100528,6.5688,152.21,152.18,23.68]
[1746106100733,6.5688,152.21,152.19,6.5697]
[1746106100935,6.5686,152.22,152.19,6.5697]
[1746106101230,6.5686,152.22,152.19,6.5693]
[1746106101430,6.5682,152.23,152.18,25.7607]
[1746106101629,2.0096,152.26,152.18,25.7607]
[1746106101938,6.5684,152.22,152.2,6.5691]
[1746106102833,6.5682,152.23,152.2,6.5691]
[1746106103934,2.0096,152.26,152.2,6.5691]
[1746106104834,6.5682,152.23,152.2,6.5691]
[1746106105735,6.5684,152.22,152.2,6.5691]
[1746106106930,6.5682,152.23,152.2,6.5691]
[1746106107234,6.5682,152.23,152.18,25.7607]
[1746106107235,2.0096,152.26,152.19,6.5695]
[1746106107537,6.5686,152.22,152.19,6.5695]
[1746106112639,6.5689,152.21,152.19,6.5695]
[1746106114633,6.5695,152.2,152.18,23.68]
[1746106116339,6.5695,152.2,152.18,30.2501]
[1746106116737,6.569,152.21,152.18,30.2501]
[1746106116941,14.04322263,152.26,152.18,30.2501]
[1746106117443,6.5693,152.2,152.18,30.2501]
[1746106119045,6.5697,152.19,152.18,23.68]
[1746106121444,6.5703,152.18,152.15,27.8225]
[1746106121843,6.5703,152.18,152.15,34.3937]
[1746106123044,1.9563,152.25,152.15,27.8225]
[1746106123446,6.5696,152.2,152.16,6.5706]
[1746106123640,1.9563,152.25,152.16,6.5706]
[1746106124041,6.5696,152.2,152.16,6.5706]
[1746106124646,6.5697,152.19,152.16,6.5706]
[1746106125038,1.9563,152.25,152.15,34.3938]
[1746106125239,6.5704,152.18,152.15,34.3938]
[1746106126445,35.71362263,152.23,152.15,27.8225]
[1746106126742,35.71362263,152.23,152.15,23.68]
[1746106127747,35.71362263,152.23,152.14,30.2517]
[1746106128047,6.5705,152.18,152.14,30.2517]
[1746106129449,6.5706,152.17,152.14,30.2517]
[1746106130249,6.5706,152.17,152.15,6.5714]
[1746106130441,35.71362263,152.23,152.15,6.5714]
[1746106130442,6.5703,152.18,152.15,6.5714]
[1746106131148,6.5695,152.2,152.14,23.68]
[1746106131348,6.5695,152.2,152.15,2.0909]
[1746106131548,6.5695,152.2,152.18,6.5701]
[1746106132749,1.9563,152.25,152.19,6.5693]
[1746106132957,1.9563,152.25,152.17,23.68]
[1746106133448,6.5688,152.22,152.19,6.5695]
[1746106133851,1.9563,152.25,152.19,6.5695]
[1746106135043,6.5686,152.22,152.19,6.5695]
[1746106135349,1.9563,152.25,152.19,6.5695]
[1746106135551,6.5688,152.22,152.19,6.5695]
[1746106136152,6.5682,152.23,152.2,6.5692]
[1746106136350,1.9563,152.25,152.2,6.5692]
[1746106136750,6.5686,152.22,152.19,6.5695]
[1746106138656,6.569,152.21,152.18,6.57]
[1746106139660,6.5693,152.2,152.18,6.57]
[1746106140857,6.569,152.21,152.19,6.5695]
[1746106141156,1.9563,152.25,152.17,23.68]
[1746106141552,1.9563,152.25,152.18,6.5699]
[1746106142457,6.5691,152.21,152.18,6.5699]
[1746106143562,6.5693,152.2,152.18,6.5699]
[1746106144159,6.5693,152.2,152.17,30.2504]
[1746106144358,6.5693,152.2,152.17,23.68]
[1746106144761,6.5693,152.2,152.18,6.57]
[1746106145461,12.03362263,152.21,152.13,23.66]
[1746106146061,6.5706,152.17,152.13,23.66]
[1746106146259,12.03362263,152.21,152.13,23.66]
[1746106146459,12.03362263,152.21,152.14,6.5715]
[1746106147362,6.5709,152.17,152.14,6.5715]
[1746106147562,6.5709,152.17,152.13,23.66]
[1746106148256,6.571,152.16,152.14,6.5718]
[1746106148462,12.03362263,152.21,152.13,23.66]
[1746106148862,12.03362263,152.21,152.13,30.232]
[1746106149057,12.03362263,152.21,152.13,23.66]
[1746106149364,6.5703,152.18,152.15,6.5713]
[1746106149665,12.03362263,152.21,152.13,23.66]
[1746106149867,6.5702,152.18,152.15,6.5713]
[1746106151164,12.03362263,152.21,152.15,6.5713]
[1746106151766,6.5703,152.18,152.15,6.5713]
[1746106153366,6.5706,152.17,152.14,6.5717]
[1746106154070,6.571,152.16,152.13,30.2321]
[1746106155671,6.571,152.16,152.14,6.5718]
[1746106156568,6.571,152.16,152.13,30.2321]
[1746106156968,15.0912,152.25,152.16,6.5708]
[1746106157158,1.20726846,152.24,152.14,12.03362263]
[1746106157365,25.6363,152.25,152.14,14.08182263]
[1746106158273,6.5686,152.22,152.19,6.5694]
[1746106158475,25.6363,152.25,152.18,23.68]
[1746106159477,6.5685,152.22,152.19,6.5695]
[1746106160076,6.5685,152.22,152.2,6.5692]
[1746106161279,6.5682,152.23,152.2,6.5692]
[1746106162979,6.5684,152.22,152.19,6.5696]
[1746106163279,25.6363,152.25,152.18,23.68]
[1746106163580,6.5686,152.22,152.19,6.5697]
[1746106164579,25.6363,152.25,152.18,23.68]
[1746106164780,6.5689,152.21,152.18,30.25]
[1746106164981,12.03362263,152.24,152.18,23.68]
[1746106165280,6.5687,152.22,152.19,6.5697]
[1746106165484,12.03362263,152.24,152.18,23.68]
[1746106165981,12.03362263,152.24,152.19,6.5696]
[1746106166178,12.03362263,152.24,152.18,23.68]
[1746106166778,12.03362263,152.24,152.15,23.66]
[1746106167182,6.5695,152.2,152.16,6.5707]
[1746106167672,6.5697,152.19,152.16,6.5707]
[1746106167870,1.9563,152.25,152.15,23.66]
[1746106168072,6.5682,152.23,152.16,4.0081]
[1746106169281,6.5682,152.23,152.19,6.5693]
[1746106169482,6.5682,152.23,152.19,30.2293]
[1746106169676,6.5684,152.22,152.19,30.2293]
[1746106169982,2.0096,152.26,152.19,23.66]
[1746106170390,23.66,152.28,152.19,23.66]
[1746106171577,6.5668,152.26,152.23,6.5677]
[1746106171778,2.0552,152.3,152.2,14.13892263]
[1746106171981,16.00832263,152.31,152.2,14.13892263]
[1746106172185,6.5659,152.28,152.25,6.5668]
[1746106172380,13.97062263,152.31,152.24,23.66]
[1746106172579,6.5656,152.29,152.26,6.5664]
[1746106173086,6.5651,152.3,152.24,23.66]
[1746106173482,74.08792364,152.34,152.24,23.66]
[1746106173678,74.08792364,152.34,152.25,3.9386]
[1746106173883,6.5646,152.31,152.29,6.5654]
[1746106174082,6.5646,152.31,152.25,3.9386]
[1746106174483,6.5646,152.31,152.28,6.5655]
[1746106176281,6.5646,152.31,152.29,6.5654]
[1746106176482,6.5643,152.32,152.29,6.5654]
[1746106176882,41.82502263,152.35,152.3,6.5649]
[1746106177077,39.71802263,152.35,152.28,23.64]
[1746106177289,37.61092263,152.35,152.28,23.64]
[1746106177592,6.5635,152.34,152.3,6.5649]
[1746106177785,37.61092263,152.35,152.3,6.5649]
[1746106178089,37.61092263,152.35,152.31,6.5645]
[1746106178289,35.67362263,152.38,152.28,23.64]
[1746106178493,1.20615158,152.37,152.28,23.64]
[1746106178690,6.5631,152.35,152.31,6.5642]
[1746106179293,6.5631,152.35,152.32,6.5641]
[1746106179890,6.5631,152.35,152.31,6.5643]
[1746106180197,35.67362263,152.38,152.28,23.64]
[1746106180387,35.67362263,152.38,152.29,6.5651]
[1746106181092,6.564,152.33,152.29,6.5651]
[1746106181493,35.67362263,152.38,152.29,6.5651]
[1746106182186,6.5636,152.34,152.3,6.5648]
[1746106182699,35.67362263,152.38,152.3,6.5648]
[1746106182999,6.5636,152.34,152.3,6.5648]
[1746106183388,6.5639,152.33,152.3,6.5648]
[1746106183696,35.67362263,152.38,152.29,6.5652]
[1746106184193,6.5641,152.32,152.29,6.5652]
[1746106186392,35.67362263,152.38,152.28,30.2057]
[1746106186696,12.03362263,152.35,152.28,30.2057]
[1746106186995,6.5654,152.29,152.28,23.64]
[1746106190895,6.5663,152.27,152.25,34.1455]
[1746106191099,6.5663,152.27,152.25,27.5786]
[1746106192497,6.5667,152.26,152.25,27.5786]
[1746106192696,12.03362263,152.32,152.25,34.1457]
[1746106193498,12.03362263,152.32,152.25,23.64]
[1746106194193,6.5667,152.26,152.25,23.64]
[1746106194393,1.957,152.31,152.25,23.64]
[1746106194596,6.5667,152.26,152.25,23.64]
[1746106194801,1.957,152.31,152.22,32.2645]
[1746106195099,1.957,152.31,152.22,25.6963]
[1746106195401,6.5661,152.28,152.23,6.5679]
[1746106195600,6.5661,152.28,152.22,25.6963]
[1746106195901,6.5661,152.28,152.24,6.5673]
[1746106196502,6.5653,152.3,152.22,25.6963]
[1746106196999,6.5653,152.3,152.26,6.5665]
[1746106197502,6.5653,152.3,152.22,25.6963]
[1746106197705,6.5653,152.3,152.27,6.5661]
[1746106197904,25.597,152.31,152.22,25.6963]
[1746106198403,6.5661,152.28,152.22,23.64]
[1746106198701,6.5661,152.28,152.25,6.5669]
[1746106199097,6.5661,152.28,152.22,23.64]
[1746106199292,6.5655,152.29,152.26,6.5666]
[1746106199702,25.597,152.31,152.26,6.5666]
[1746106199906,1.957,152.31,152.26,6.5666]
[1746106200501,1.957,152.31,152.27,6.5662]
[1746106200702,1.957,152.31,152.22,23.64]
[1746106201404,6.565,152.3,152.27,6.566]
[1746106201907,1.957,152.31,152.27,6.566]
[1746106202203,1.957,152.31,152.22,23.64]
[1746106202407,25.597,152.31,152.22,23.64]
[1746106202604,12.03362263,152.29,152.22,23.64]
[1746106202907,12.03362263,152.26,152.22,23.64]
[1746106203107,12.03362263,152.26,152.19,25.6685]
[1746106203308,6.5673,152.25,152.22,6.5681]
[1746106203506,12.03362263,152.26,152.19,25.6685]
[1746106204102,3.9743,152.28,152.19,25.6685]
[1746106204612,6.5671,152.26,152.23,6.5677]
[1746106204800,12.03362263,152.26,152.19,25.6685]
[1746106205008,12.03362263,152.26,152.2,6.5689]
[1746106205709,6.5682,152.23,152.2,6.5689]
[1746106205906,12.03362263,152.26,152.21,6.5686]
[1746106206208,12.03362263,152.27,152.19,25.6685]
[1746106206412,6.5678,152.24,152.21,6.5685]
[1746106206612,6.5678,152.24,152.19,25.6685]
[1746106206911,6.5673,152.25,152.22,6.5681]
[1746106207106,12.03362263,152.27,152.19,25.6685]
[1746106207507,12.03362263,152.27,152.19,32.2381]
[1746106208111,12.03362263,152.27,152.2,6.5691]
[1746106208307,12.03362263,152.27,152.19,25.6685]
[1746106208501,6.5691,152.21,152.19,23.64]
[1746106208701,12.03362263,152.24,152.16,23.64]
[1746106209307,6.5703,152.18,152.16,23.64]
[1746106209514,12.03362263,152.21,152.16,23.64]
[1746106209712,12.03362263,152.21,152.13,23.64]
[1746106209910,6.5715,152.15,152.13,23.64]
[1746106210214,6.5715,152.15,152.09,2.0664]
[1746106210215,35.67362263,152.18,152.09,2.0664]
[1746106210417,1.9917,152.17,152.08,23.64]
[1746106210719,6.573,152.12,152.09,6.5739]
[1746106211718,6.573,152.12,152.08,23.64]
[1746106212209,6.573,152.12,152.09,6.5738]
[1746106212808,6.573,152.12,152.08,23.64]
[1746106213116,12.03362263,152.15,152.08,23.64]
[1746106213510,19.29884795,152.16,152.08,23.64]
[1746106214008,1.9333,152.15,152.08,23.64]
[1746106214213,1.9333,152.15,152.08,30.2144]
[1746106214418,1.9333,152.15,152.08,6.5744]
[1746106214624,1.9333,152.15,152.05,27.4744]
[1746106214822,23.64,152.14,152.07,6.5748]
[1746106215118,23.64,152.14,152.05,27.4744]
[1746106215320,6.5744,152.09,152.05,27.4744]
[1746106215722,6.5744,152.09,152.05,34.0498]
[1746106215922,6.5737,152.1,152.05,27.4744]
[1746106216226,6.5737,152.1,152.06,6.575]
[1746106216423,6.5747,152.08,152.05,23.64]
[1746106216725,25.7068,152.14,152.05,23.64]
[1746106216919,6.5753,152.06,152.02,23.66]
[1746106217118,23.66,152.1,152.02,23.66]
[1746106217315,3.9602,152.09,152.0,3.9826]
[1746106217626,6.5762,152.04,152.0,3.9826]
[1746106218329,6.5762,152.04,152.0,2.0664]
[1746106218531,3.9602,152.09,151.99,30.2379]
[1746106218733,2.0672,152.08,151.99,30.2379]
[1746106219128,2.0672,152.08,151.99,23.66]
[1746106219633,6.5768,152.03,151.99,30.2381]
[1746106220024,23.66,152.06,151.99,30.2381]
[1746106220025,23.66,152.06,151.99,23.66]
[1746106220730,30.2356,152.06,152.02,6.5768]
[1746106221036,23.66,152.06,152.02,6.5768]
[1746106221233,6.5762,152.05,152.01,6.5774]
[1746106221437,23.66,152.06,151.99,23.66]
[1746106221732,19.29884795,152.04,151.96,23.66]
[1746106221934,2.1108,152.03,151.96,23.66]
[1746106222934,1.9336,152.02,151.96,23.66]
[1746106223130,19.29884795,152.01,151.93,520.4]
[1746106223336,21.39624795,152.01,151.94,23.66]
[1746106223632,6.5799,151.96,151.94,23.66]
[1746106224022,6.5798,151.96,151.93,23.66]
[1746106224231,21.39624795,152.01,151.89,1.9829]
[1746106224433,1.20891988,152.0,151.9,23.66]
[1746106224937,6.5793,151.97,151.93,6.5807]
[1746106225136,21.39624795,152.01,151.93,30.2407]
[1746106225333,6.5812,151.93,151.91,23.66]
[1746106225529,42.95884795,151.98,151.91,23.66]
[1746106225734,1.2090756,151.97,151.91,23.66]
[1746106226038,6.5811,151.93,151.91,23.66]
[1746106226240,42.95884795,151.98,151.91,23.66]
[1746106226431,6.5808,151.94,151.91,23.66]
[1746106226938,42.95884795,151.98,151.91,23.66]
[1746106227137,6.5799,151.96,151.91,23.66]
[1746106227331,389.5936,152.02,151.91,23.66]
[1746106227532,6.579,151.98,151.94,6.5802]
[1746106227832,389.5936,152.02,151.91,23.66]
[1746106228031,6.5781,152.0,151.97,6.5792]
[1746106230332,2.1108,152.03,151.97,6.5792]
[1746106231230,23.66,152.05,151.96,23.66]
[1746106231435,21.37414795,152.07,151.97,2.0967]
[1746106231636,19.29884795,152.07,151.97,6.1951]
[1746106232038,19.29884795,152.07,151.97,29.8751]
[1746106232241,19.29884795,152.07,151.97,27.7724]
[1746106232440,19.29884795,152.07,151.97,25.7767]
[1746106233240,6.5781,152.0,151.97,32.3559]
[1746106233541,19.29884795,152.07,151.97,25.7767]
[1746106233741,19.29884795,152.07,151.97,23.68]
[1746106234134,19.29884795,152.07,151.96,23.68]
[1746106234334,6.5783,152.0,151.96,30.2595]
[1746106234536,42.97884795,152.04,151.96,23.68]
[1746106234739,6.5788,151.98,151.96,23.68]
[1746106235939,6.5792,151.97,151.94,6.5804]
[1746106236135,6.5792,151.97,151.93,23.88]
[1746106236335,19.29884795,152.01,151.93,23.88]
[1746106236535,6.5796,151.97,151.93,23.88]
[1746106236736,19.29884795,152.01,151.93,23.88]
[1746106237037,6.5799,151.96,151.93,30.4606]
[1746106237542,6.5794,151.97,151.94,6.5802]
[1746106237738,21.21704795,152.04,151.93,23.88]
[1746106237941,25.08879753,152.03,151.93,23.88]
[1746106238142,6.5783,152.0,151.94,1.9597]
[1746106238341,6.5783,152.0,151.94,3.9829]
[1746106238543,6.5783,152.0,151.97,6.5789]
[1746106238840,23.88,152.03,151.94,3.9829]
[1746106239040,23.88,152.03,151.98,6.5785]
[1746106239336,25.8792,152.09,151.97,23.88]
[1746106239541,1.20838359,152.08,151.98,1.981]
[1746106239839,1.20838359,152.07,152.03,6.5766]
[1746106240042,1.20838359,152.06,152.02,23.88]
[1746106240245,23.88,152.09,152.02,23.88]
[1746106240447,1.20823645,152.08,152.04,6.576]
[1746106240741,7.78343645,152.07,152.02,23.88]
[1746106240944,548.3318,152.12,152.02,23.88]
[1746106241137,1.20809045,152.11,152.03,3.9674]
[1746106241337,1.20809045,152.1,152.05,6.5757]
[1746106241540,6.5751,152.07,152.03,3.9674]
[1746106241943,27.7918,152.12,152.03,3.9674]
[1746106242143,6.5756,152.06,152.03,3.9674]
[1746106242443,27.7918,152.12,152.04,6.576]
[1746106242638,1.2080913,152.11,152.04,6.576]
[1746106242843,1.2080913,152.11,152.03,3.9674]
[1746106242844,19.29884795,152.09,152.02,23.88]
[1746106243031,1.2080913,152.08,152.02,23.88]
[1746106243237,25.0880913,152.08,152.02,23.88]
[1746106243437,1.20820774,152.07,152.02,23.88]
[1746106243949,6.5758,152.05,152.02,30.4568]
[1746106244146,6.5758,152.05,152.02,23.88]
[1746106244846,6.5758,152.05,152.02,30.4569]
[1746106245840,23.88,152.08,152.02,23.88]
[1746106246046,1.20822241,152.07,152.02,23.88]
[1746106246548,6.576,152.05,152.02,30.4568]
[1746106247448,6.5762,152.04,152.02,23.88]
[1746106247641,23.88,152.08,152.02,23.88]
[1746106247839,1.2082311,152.07,152.02,23.88]
[1746106248442,6.576,152.05,152.02,23.88]
[1746106248639,23.88,152.08,152.02,30.4568]
[1746106248842,1.20822333,152.07,152.02,23.88]
[1746106249750,6.5765,152.04,152.02,23.88]
[1746106250657,6.5766,152.03,152.02,23.88]
[1746106251345,6.5764,152.04,152.02,23.88]
[1746106251547,23.88,152.08,152.02,23.88]
[1746106251747,1.20823181,152.07,152.02,23.88]
[1746106251947,1.9992,152.14,152.03,1.9201]
[1746106252148,1.20796591,152.13,152.03,1.9201]
[1746106252348,1.20796591,152.14,152.04,520.9]
[1746106252550,7.74997546,152.17,152.06,19.29884795]
[1746106252751,1.20763806,152.16,152.07,25.8994]
[1746106252946,7.74997546,152.17,152.07,25.8994]
[1746106253354,7.74997546,152.17,152.15,6.5712]
[1746106253549,7.74997546,152.17,152.14,23.88]
[1746106254158,7.74997546,152.19,152.14,23.88]
[1746106255157,1.20740512,152.18,152.14,23.88]
[1746106255555,6.5714,152.15,152.14,23.88]
[1746106256552,6.5733,152.11,152.08,6.5743]
[1746106256755,13.1383,152.21,152.09,23.86]
[1746106256950,1.20754427,152.2,152.09,23.86]
[1746106257151,6.573,152.12,152.09,23.86]
[1746106257354,23.86,152.18,152.09,23.86]
[1746106257550,1.20755126,152.17,152.09,23.86]
[1746106258057,23.86,152.18,152.09,23.86]
[1746106258246,5.50043564,152.17,152.09,23.86]
[1746106258451,1.20760601,152.16,152.09,23.86]
[1746106258751,25.9016,152.18,152.09,23.86]
[1746106258947,6.5734,152.11,152.09,23.86]
[1746106259155,25.9016,152.18,152.07,2.0194]
[1746106259350,1.20765864,152.17,152.08,23.86]
[1746106259552,1.20766013,152.16,152.08,23.86]
[1746106259754,1.20766013,152.17,152.08,23.86]
[1746106259957,1.20765044,152.16,152.08,23.86]
[1746106260154,6.5729,152.12,152.09,6.5738]
[1746106260364,25.9016,152.18,152.08,23.86]
[1746106260661,1.20763467,152.17,152.08,23.86]
[1746106260857,23.86,152.24,152.09,19.29884795]
[1746106261259,1.20719674,152.23,152.15,6.5712]
[1746106261556,1.20719674,152.23,152.16,23.86]
[1746106262452,6.5704,152.18,152.16,23.86]
[1746106262958,23.86,152.24,152.16,23.86]
[1746106263159,6.5706,152.17,152.16,23.86]
[1746106263563,6.5725,152.13,152.1,8.612]
[1746106263753,6.5725,152.13,152.11,23.86]
[1746106264062,6.5727,152.12,152.11,23.86]
[1746106265449,6.5723,152.13,152.11,23.86]
[1746106266261,6.5727,152.12,152.11,23.86]
[1746106266658,10.65453119,152.12,152.11,23.86]
[1746106267060,6.5727,152.12,152.11,23.86]
[1746106267964,6.5741,152.09,152.08,23.96]
[1746106268666,23.96,152.16,152.08,23.96]
[1746106269065,23.96,152.16,152.08,30.5342]
[1746106269360,13.1404,152.18,152.08,23.96]
[1746106269571,1.20772957,152.17,152.08,23.96]
[1746106269768,6.5715,152.15,152.08,23.96]
[1746106270063,13.1367,152.23,152.14,6.5714]
[1746106270258,6.5704,152.18,152.15,26.0699]
[1746106270462,25.9984,152.25,152.16,23.96]
[1746106270765,23.96,152.25,152.16,30.5308]
[1746106270965,6.5699,152.19,152.16,30.5308]
[1746106271366,1.9402,152.26,152.18,6.5701]
[1746106271568,1.20707319,152.25,152.16,23.96]
[1746106271761,1.20695626,152.27,152.16,23.96]
[1746106271975,1.2069684,152.26,152.19,6.5693]
[1746106272265,7.74997546,152.28,152.2,23.96]
[1746106272463,6.5688,152.21,152.2,23.96]
[1746106274564,6.5707,152.17,152.15,2.1099]
[1746106274766,6.5707,152.17,152.16,23.96]
[1746106275361,19.29884795,152.22,152.13,23.96]
[1746106275561,3.29449838,152.21,152.13,23.96]
[1746106275762,6.5716,152.15,152.13,23.96]
[1746106276460,6.5719,152.14,152.13,23.96]
[1746106276860,23.96,152.18,152.1,23.96]
[1746106277062,19.29884795,152.16,152.07,23.96]
[1746106277260,19.29884795,152.13,152.07,23.96]
[1746106277463,19.29884795,152.13,152.02,23.96]
[1746106277664,3.29514967,152.12,152.02,30.537]
[1746106277861,2.0871,152.12,152.02,30.537]
[1746106278071,6.5766,152.03,152.02,23.96]
[1746106278270,43.25884795,152.1,151.99,548.4865]
[1746106278470,19.29884795,152.07,151.99,544.4]
[1746106278669,6.5779,152.0,151.99,23.96]
[1746106278871,4.24943662,152.0,151.93,23.25297519]
[1746106279175,19.29884795,152.01,151.93,23.96]
[1746106279377,23.96,152.0,151.93,23.96]
[1746106280172,1.9886,152.03,151.93,23.96]
[1746106280373,23.96,152.03,151.93,23.96]
[1746106280573,522.6365,152.06,151.93,23.96]
[1746106280574,25.9765,152.06,151.93,23.96]
[1746106280975,25.9765,152.06,151.93,55.3843281]
[1746106281680,6.5754,152.06,152.01,6.5771]
[1746106282184,33.4411281,152.08,152.0,23.96]
[1746106283080,6.5763,152.04,152.0,23.96]
[1746106283286,33.4411281,152.08,151.97,23.98]
[1746106283287,23.98,152.05,151.97,23.98]
[1746106283578,6.5796,151.97,151.93,23.98]
[1746106283779,31.4243281,151.99,151.87,520.7]
[1746106283978,23.98,151.98,151.9,23.98]
[1746106284288,25.9135,151.98,151.9,23.98]
[1746106284986,6.5799,151.96,151.91,6.5815]
[1746106285180,25.9135,151.98,151.91,6.5815]
[1746106285983,6.5804,151.95,151.91,6.5815]
[1746106286184,25.9135,151.98,151.9,23.98]
[1746106286386,2.0813,151.97,151.9,23.98]
[1746106286574,2.0813,151.97,151.87,520.7]
[1746106286773,2.0813,151.97,151.89,6.5826]
[1746106286979,2.0813,151.97,151.88,23.98]
[1746106287174,3.97854517,151.96,151.88,30.5628]
[1746106287578,31.4243281,151.96,151.88,23.98]
[1746106287778,3.97842077,151.95,151.87,6.5831]
[1746106287978,3.97842077,151.95,151.85,23.98]
[1746106288184,31.4243281,151.96,151.85,23.98]
[1746106288984,31.4243281,151.93,151.83,2.0908]
[1746106289283,6.5835,151.88,151.84,6.5848]
[1746106289591,23.98,151.92,151.83,2.0908]
[1746106289991,6.5834,151.88,151.84,6.5846]
[1746106290292,23.98,151.92,151.79,544.84]
[1746106290492,1.20973176,151.91,151.82,6.5854]
[1746106290789,1.20973176,151.91,151.79,544.84]
[1746106291289,3.97978556,151.9,151.79,544.84]